Workbook

Sheet DatiGen
L2: ACPM | M2: V.ne | N2: 2022.1.0
B4: Lavori di | Q4: Tecnico Asseveratore
B5: Sostituzione infissi nell'appartamento a piano secondo del fabbricato sito a XXXXXXXXXXXXX in via XXXXX N.27 | Q5: Titolo | S5: Ingegnere | Y5: abbr. | Z5: Ing.
Q6: Cognome | V6: Nome | W6: mario
Q7: Indirizzo
B8: Titolo Abilitativo | D8: CILA Prot. N. XXXXX del XXXXXXX | Q8: Città
Q9: Nato a | V9: il
B10: Fornitore / Ditta | Q10: Residente a | V10: Indirizzo
B11: Rag. Sociale | D11: SIM srl | Q11: Codice Fiscale | V11: P.Iva
B12: Indirizzo | D12: Via XXXXXXX | Q12: Albo / N.Iscrizione | S12: Ordine degli Ingegneri della provincia di XXXXXXXXXXX | Y12: N. | Z12: 1
B13: Città | D13: 90020 Paese (PR) | Q13: Mail / PEC
B14: Codice Fiscale | D14: 01110101010 | I14: P.Iva | K14: 011110101010 | Q14: Polizza Professionale | S14: A121C526113-LB | X14: Scadenza | Y14: 2022-09-26
Q15: Compagnia Assicurat. | S15: Lloyd’s Insurance Company S.A. | X15: Massimale | Y15: 1500000
B16: Committente | P16: TRUE
B17: Cognome Nome | D17: Tizio Caio | P17: 1 | Q17: Versione Demo
B18: Nato a | D18: Palermo | I18: il | K18: 1990-07-23 | Q18: PC-MARIO1-SOPRA
B19: Residente a | D19: Castellana Sicula | I19: Indirizzo | K19: Via YYYYY | Q19: Acquista ACPM
B20: Codice Fiscale | D20: TZICAI | I20: Tel./Mail | Q20: https://www.madosoft.it/prodotti/superbonus110/spesa-detraibile-ammessa/asseverazione-congruita-spese
B22: Immobile
B23: Tipologia | D23: Unità Immobiliare
B24: Indirizzo | D24: Via ZZZZZ
B25: Città | D25: Palermo (PA)
B26: Dati Catastali: FOGLIO | D26: 12 | F26: P.LLA | H26: 25 | I26: SUB. | K26: 6 | L26: CAT. | M26: A/4
B28: Tipologia Intervento
B29: Isolamento pareti perimetrali - Zone A, B e C - Esterno/Diffusa cond
B30: Superf. Riscaldata mq. | D30: 120 | F30: TRUE | I30: TRUE | L30: FALSE
B31: Isolamento pareti perimetrali - Zone A, B e C - Esterno/Diffusa cond
B32: Superficie | C32: mq. | D32: 5 | F32: Spesa Ammissibile DL.34/2020 e smi : | M32: 0
B34: Riferimento Prezzi | D34: Prezzario Regionale 2022, Prezzario DEI
B36: Spese specifiche | L36: =L37/I37 -> 0.1
B37: Fattura per Fornitura e posa N. | E37: 163 | F37: del | G37: 2022-06-01 | H37: Importo | I37: =ImportoComputo_FP+ImportoComputo_SicFP -> 14490.37 | K37: IVA | L37: =ImpFatForn*0.1 -> 1449.037 | M37: Totale | N37: =ImpFatForn+ImpIvaFat -> 15939.407
B39: Spese Tecniche: | E39: Imponibile | G39: =160/1.22 -> 131.147541 | H39: Aliq. Iva | I39: 0.22 | J39: IVA | L39: =G39*I39 -> 28.85245902 | M39: Totale | N39: =G39+L39 -> 160
Q43: Versione Demo

Sheet Computo Metrico
A2: =CONCATENATE("ACPM Vers.",Versione," ©2022 SIM srl") -> ACPM Vers.2022.1.0 ©2022 SIM srl | B2: COMPUTO METRICO | M2: Incidenza Manodopera | N2: Fornitura e Posa | O2: Altro / Opere complementari | P2: Opere Installazione / Oneri Sicurezza | S2: Importo Manodopera | T2: Importo Fornitura e Posa | U2: Importo Altre Opere | V2: Importo Sicurezza | X2: Manopera Voci Fornitura e Posa | Y2: Manopera Voci Altro | Z2: Manopera Voci Sicurezza
B3: =IF(DatiGen!B5<>"",CONCATENATE("Lavori di ",DatiGen!B5),"") -> Lavori di Sostituzione infissi nell'appartamento a piano secondo del fabbricato sito a XXXXXXXXXXXXX in via XXXXX N.27
B4: =IF(DatiGen!B6<>"",DatiGen!B6,"") -> 
B5: =IF(DatiGen!B7<>"",DatiGen!B7,"") -> 
B6: =DatiGen!B28 -> Tipologia Intervento | C6: =DatiGen!B29 -> Isolamento pareti perimetrali - Zone A, B e C - Esterno/Diffusa cond | K6: =CONCATENATE(DatiGen!B32," ",DatiGen!C32) -> Superficie mq. | L6: =IF(nLicenza="Versione Demo",1000,DatiGen!D32) -> 1000
B7: =DatiGen!B16 -> Committente | C7: =DatiGen!D17 -> Tizio Caio
B8: =DatiGen!Q4 -> Tecnico Asseveratore | C8: =CONCATENATE(DatiGen!Z5," ", DatiGen!S6, " ", DatiGen!W6) -> Ing. mario
C9: =CONCATENATE(DatiGen!S7," , ",DatiGen!S8) -> ,
C10: =CONCATENATE("Iscritto a : ",DatiGen!S12) -> Iscritto a : Ordine degli Ingegneri della provincia di XXXXXXXXXXX
B11: Tariffa | C11: Descrizione | I11: U.M. | J11: Quantità | K11: Prezzo Un. | L11: Prezzo
B12: ='Listino Base'!B3 -> DEI A25114 | C12: ='Listino Base'!D3 -> Rimozione infissi esistenti, sportelli, persiane, ecc., calcolato sulla superficie, inclusa parte vetrata, telaio, controtelaio, smuratura | I12: ='Listino Base'!E3 -> mq | J12: 0 | K12: ='Listino Base'!F3 -> 19.86 | L12: =K12*J12 -> 0 | M12: 1 | N12: FALSE | O12: TRUE | P12: FALSE | R12: =IF(SUM(T12:V12)<>L12,"Indicare ▣ 1 voce","") ->  | S12: =M12*L12 -> 0 | T12: =IF(N12=TRUE,L12,0) -> 0 | U12: =IF(O12=TRUE,L12,0) -> 0 | V12: =IF(P12=TRUE,L12,0) -> 0 | X12: =IF(N12=TRUE,L12*M12,0) -> 0 | Y12: =IF(O12=TRUE,L12*M12,0) -> 0 | Z12: =IF(P12=TRUE,L12*M12,0) -> 0
B13: ='Listino Base'!B4 -> 21.01.25 | C13: ='Listino Base'!D4 -> Trasporto alle pubbliche discariche del comune in cui si eseguono i lavori …., esclusi gli oneri di conferimento a discarica. | I13: ='Listino Base'!E4 -> mc | J13: 0 | K13: ='Listino Base'!F4 -> 32.26 | L13: =K13*J13 -> 0 | M13: 0 | N13: FALSE | O13: TRUE | P13: FALSE | R13: =IF(SUM(T13:V13)<>L13,"Indicare ▣ 1 voce","") ->  | S13: 0 | T13: 0 | U13: 0 | V13: 0 | X13: 0 | Y13: 0 | Z13: 0
B14: ='Listino Base'!B5 -> DEI - A25136.a | C14: ='Listino Base'!D5 -> Oneri conferimento a discarica | I14: ='Listino Base'!E5 -> ton | J14: 0 | K14: ='Listino Base'!F5 -> 18 | L14: =K14*J14 -> 0 | M14: 0 | N14: FALSE | O14: TRUE | P14: FALSE | S14: 0 | T14: 0 | U14: 0 | V14: 0 | X14: 0 | Y14: 0 | Z14: 0
B15: DEI C25076e | C15: Portafinestra PVC 2 ante, a battente N.4 x 1,18 x 2,29 | I15: mq | J15: 1 | K15: 14280.33 | L15: =K15*J15 -> 14280.33 | M15: 0.2764 | N15: TRUE | O15: FALSE | P15: FALSE | S15: 3947.083212 | T15: 14280.33 | U15: 0 | V15: 0 | X15: 3947.083212 | Y15: 0 | Z15: 0
B16: AP.1 | C16: Zanzariera laterale a molla N.4 x 1,18 x 2,29 | I16: mq | J16: 0 | K16: 40 | L16: =K16*J16 -> 0 | M16: 0.22 | N16: TRUE | O16: FALSE | P16: FALSE | S16: 0 | T16: 0 | U16: 0 | V16: 0 | X16: 0 | Y16: 0 | Z16: 0
B17: C25076a | C17: Finestra PVC a 1 anta, a battente N.2 x 0,66 x 1,29 | I17: mq | J17: 0 | K17: 445.52 | L17: 0 | M17: 0.22 | N17: TRUE | O17: FALSE | P17: FALSE | S17: 0 | T17: 0 | U17: 0 | V17: 0 | X17: 0 | Y17: 0 | Z17: 0
B18: DEI C25126 | C18: Sovrapprezzo per ciascuna anta ribalta N.4+2 | I18: cad | J18: 0 | K18: 70 | L18: 0 | M18: 0.22 | N18: TRUE | O18: FALSE | P18: FALSE | S18: 0 | T18: 0 | U18: 0 | V18: 0 | X18: 0 | Y18: 0 | Z18: 0
B19: DEI C13115b | C19: Controtelai in acciaio zincato a caldo L=10/15 cm | I19: mq | J19: 0 | K19: 36.96 | L19: 0 | M19: 0.26 | N19: TRUE | O19: FALSE | P19: FALSE | S19: 0 | T19: 0 | U19: 0 | V19: 0 | X19: 0 | Y19: 0 | Z19: 0
B20: DEI A25135b | C20: Tiro in alto o Tiro in basso mc. 2 x (10,81+1,70)x0,10 | I20: mc | J20: =2*J13 -> 0 | K20: 34.82 | L20: 0 | M20: 0.96 | N20: TRUE | O20: FALSE | P20: FALSE | S20: 0 | T20: 0 | U20: 0 | V20: 0 | X20: 0 | Y20: 0 | Z20: 0
B21: DEI C43024 | C21: Vetrocamera 6/7 + 16 + 6/7 antinfortunistico selettivo con Argon | I21: mq | J21: 0 | K21: 145.5 | L21: 0 | M21: 0 | N21: TRUE | O21: FALSE | P21: FALSE | S21: 0 | T21: 0 | U21: 0 | V21: 0 | X21: 0 | Y21: 0 | Z21: 0
B22: DEI N04137a | C22: Sollevatore telescopico con cestello | I22: ora | J22: 1 | K22: 210.04 | L22: 210.04 | M22: 0 | N22: FALSE | O22: FALSE | P22: TRUE | S22: 0 | T22: 0 | U22: 0 | V22: 210.04 | X22: 0 | Y22: 0 | Z22: 0
J23: 0 | K23: 0 | L23: =K23*J23 -> 0 | N23: FALSE | O23: FALSE | P23: FALSE | S23: 0 | T23: 0 | U23: 0 | V23: 0 | X23: 0 | Y23: 0 | Z23: 0
J24: 0 | K24: 0 | L24: 0 | N24: FALSE | O24: FALSE | P24: FALSE | S24: 0 | T24: 0 | U24: 0 | V24: 0 | X24: 0 | Y24: 0 | Z24: 0
J25: 0 | K25: 0 | L25: 0 | N25: FALSE | O25: FALSE | S25: 0 | T25: 0 | U25: 0 | V25: 0 | X25: 0 | Y25: 0 | Z25: 0
J26: 0 | K26: 0 | L26: 0 | N26: FALSE | O26: FALSE | S26: 0 | T26: 0 | U26: 0 | V26: 0 | X26: 0 | Y26: 0 | Z26: 0
J27: 0 | K27: 0 | L27: 0 | N27: FALSE | O27: FALSE | S27: 0 | T27: 0 | U27: 0 | V27: 0 | X27: 0 | Y27: 0 | Z27: 0
J28: 0 | K28: 0 | L28: 0 | N28: FALSE | O28: FALSE | P28: FALSE | S28: 0 | T28: 0 | U28: 0 | V28: 0 | X28: 0 | Y28: 0 | Z28: 0
J29: 0 | K29: 0 | L29: 0 | N29: FALSE | O29: FALSE | P29: FALSE | S29: 0 | T29: 0 | U29: 0 | V29: 0 | X29: 0 | Y29: 0 | Z29: 0
J30: 0 | K30: 0 | L30: 0 | N30: FALSE | O30: FALSE | P30: FALSE | S30: 0 | T30: 0 | U30: 0 | V30: 0 | X30: 0 | Y30: 0 | Z30: 0
J31: 0 | K31: 0 | L31: 0 | N31: FALSE | O31: FALSE | P31: FALSE | S31: 0 | T31: 0 | U31: 0 | V31: 0 | X31: 0 | Y31: 0 | Z31: 0
J32: 0 | K32: 0 | L32: 0 | N32: FALSE | O32: FALSE | P32: FALSE | S32: 0 | T32: 0 | U32: 0 | V32: 0 | X32: 0 | Y32: 0 | Z32: 0
J33: 0 | K33: 0 | L33: 0 | N33: FALSE | O33: FALSE | P33: FALSE | S33: 0 | T33: 0 | U33: 0 | V33: 0 | X33: 0 | Y33: 0 | Z33: 0
J34: 0 | K34: 0 | L34: 0 | N34: FALSE | O34: FALSE | P34: FALSE | S34: 0 | T34: 0 | U34: 0 | V34: 0 | X34: 0 | Y34: 0 | Z34: 0
J35: 0 | K35: 0 | L35: 0 | N35: FALSE | O35: FALSE | P35: FALSE | S35: 0 | T35: 0 | U35: 0 | V35: 0 | X35: 0 | Y35: 0 | Z35: 0
J36: 0 | K36: 0 | L36: 0 | N36: FALSE | O36: FALSE | P36: FALSE | S36: 0 | T36: 0 | U36: 0 | V36: 0 | X36: 0 | Y36: 0 | Z36: 0
J37: 0 | K37: 0 | L37: 0 | N37: FALSE | O37: FALSE | P37: FALSE | S37: 0 | T37: 0 | U37: 0 | V37: 0 | X37: 0 | Y37: 0 | Z37: 0
J38: 0 | K38: 0 | L38: 0 | N38: FALSE | O38: FALSE | P38: FALSE | S38: 0 | T38: 0 | U38: 0 | V38: 0 | X38: 0 | Y38: 0 | Z38: 0
J39: 0 | K39: 0 | L39: 0 | N39: FALSE | O39: FALSE | P39: FALSE | S39: 0 | T39: 0 | U39: 0 | V39: 0 | X39: 0 | Y39: 0 | Z39: 0
J40: 0 | K40: 0 | L40: 0 | N40: FALSE | O40: FALSE | P40: FALSE | S40: 0 | T40: 0 | U40: 0 | V40: 0 | X40: 0 | Y40: 0 | Z40: 0
L41: =SUM(L12:L40) -> 14490.37 | S41: =SUM(S12:S40) -> 3947.083212 | T41: =SUM(T12:T40) -> 14280.33 | U41: 0 | V41: 210.04 | X41: =SUM(X12:X40) -> 3947.083212 | Y41: 0 | Z41: 0
B43: Riepilogo Computo Metrico
D45: Sommano i Lavori : | E45: =L41 -> 14490.37 | F45: è | G45: di cui | I45: Importo | K45: Materiale | L45: Manodopera | M45: Opere Installaz./Sicurezza
C46: IVA | D46: 0.12 | E46: =E45*D46 -> 1738.8444 | G46: Fornitura e Posa | I46: =T41 -> 14280.33 | K46: =I46-L46 -> 10333.24679 | L46: =X41 -> 3947.083212 | M46: =V41*I46/(E45-V41) -> 210.04
D47: Totale : | E47: =SUM(E45:E46) -> 16229.2144 | G47: Altro / Opere Complementari | I47: =U41 -> 0 | K47: =I47-L47 -> 0 | L47: =Y41 -> 0 | M47: =V41*I47/(E45-V41) -> 0
G48: Opere Installazione/Oneri Sicurezza x Fornitura e Posa | I48: =M46 -> 210.04 | K48: =I48-L48 -> 210.04 | L48: =IF(V41<>0,Z41*I48/V41,0) -> 0
C49: Spese Tecniche : imponibile | E49: =DatiGen!G39 -> 131.147541 | G49: Opere Installazione/Oneri Sicurezza x Altro/Complem. | I49: =M47 -> 0 | K49: =I49-L49 -> 0 | L49: =IF(V41<>0,Z41*I49/V41,0) -> 0
C50: IVA | E50: =DatiGen!L39 -> 28.85245902 | I50: =SUM(I46:J49) -> 14490.37 | K50: =SUM(K46:K47) -> 10333.24679 | L50: =SUM(L46:L47) -> 3947.083212 | M50: =SUM(M46:P49) -> 210.04
D51: Totale | E51: =SUM(E49:E50) -> 160 | I51: =IF(M50<>V41,"Attenzione! Opere Installazione/Oneri Sicurezza Non Ripartiti correttamente","") -> 
D53: Importo Complessivo : | E53: =IF(nLicenza="Versione Demo",-10,TotaleSpeseTecniche+TotaleLavori) -> -10

Sheet Controlli
B2: =DatiGen!B5 -> Sostituzione infissi nell'appartamento a piano secondo del fabbricato sito a XXXXXXXXXXXXX in via XXXXX N.27
B3: Committente | C3: =DatiGen!D17 -> Tizio Caio | F3: =CONCATENATE(DatiGen!K19," ",DatiGen!D19) -> Via YYYYY Castellana Sicula
B5: VERIFICA 1 - Attestazione per Fornitura e Posa" | G5: Ditta: | H5: =CONCATENATE(DatiGen!D11," - ",DatiGen!D13) -> SIM srl - 90020 Paese (PR)
A7: =CONCATENATE("ACPM Vers.",Versione," ©2022 SIM srl") -> ACPM Vers.2022.1.0 ©2022 SIM srl
B15: CONTROLLO 1 - Opera Compiuta / Prezzario | N15: Importo Netto
B16: =CONCATENATE("Importo Opera Compiuta (Computo Metrico) determinato con ",IF(DatiGen!D34<>"",DatiGen!D34," ??")) -> Importo Opera Compiuta (Computo Metrico) determinato con Prezzario Regionale 2022, Prezzario DEI | N16: ='Computo Metrico'!E45 -> 14490.37 | Q16: =IF(DatiGen!D34<>"","☺","🙁") -> ☺ | R16: =IF(DatiGen!D34<>"","","Specificare Prezzari di Riferimento in DatiGen cella D20") -> 
B18: CONTROLLO 2 - DM. Costi Massimi | N18: Importo Netto
B19: Costo dei Beni Allegato A (fornitura) | F19: 180 | G19: =CONCATENATE("/",DatiGen!$C$32) -> /mq.
B20: Opere relative alla installazione (sicurezza) | F20: =IF('Computo Metrico'!L6<>0,'Computo Metrico'!I48/'Computo Metrico'!L6,0) -> 0.21004 | G20: =G19 -> /mq.
B21: Manodopera per l'installazione | F21: =IF('Computo Metrico'!L6<>0,'Computo Metrico'!L46/'Computo Metrico'!L6,0) -> 3.947083212 | G21: =G19 -> /mq.
F22: =SUM(F19:F21) -> 184.1571232 | G22: =G19 -> /mq. | H22: =CONCATENATE("x ",DatiGen!C32) -> x mq. | I22: =DatiGen!D32 -> 5 | N22: =IF(N19<>"",F22*I22+N19,F22*I22) -> 920.7856161 | Q22: =IF(N22>=SUM('Computo Metrico'!K46:P46),"☺","<") -> < | R22: =IF(Q22="<","Importo da computo per Fornitura e Posa (Materiale+Manodopera+Sicurezza) =","") -> Importo da computo per Fornitura e Posa (Materiale+Manodopera+Sicurezza) = | Z22: =IF(Q22="<",SUM('Computo Metrico'!K46:P46),"") -> 14490.37
B24: CONTROLLO 3 - Spesa Sostenuta | N24: Importo Netto
B25: Fattura per Fornitura e posa N. | D25: =DatiGen!E37 -> 163 | E25: del | F25: =DatiGen!G37 -> 2022-06-01 | G25: Importo | H25: =IF(nLicenza="Versione Demo",100,DatiGen!N37) -> 100 | J25: di cui IVA | L25: =IF(nLicenza="Versione Demo",0,DatiGen!L37) -> 0 | N25: =H25-L25 -> 100 | Q25: =IF(N25=0,"🙁",IF(N25>N16,">","☺")) -> ☺ | R25: =IF(N25=0,"Specificare Importo",IF(N25>N16,"Importo Opera Compiuta da Computo Metrico = ","")) ->  | Z25: =IF(Q25=">",N16,"") -> 
M27: Spesa Massima Ammissibile = MIN(controllo1; controllo2; fattura) | N27: =MIN(N16,N22,N25) -> 100
M29: Quota Fattura per Fornitura e Posa Eccedente Spesa Massima (a Carico del Cliente) | N29: =IF(nLicenza="Versione Demo",0,IF(N25-N27>0,N25-N27,0)) -> 0 | Q29: =IF(N29<>0,"+","") -> 
M30: =IF(N29<>0,"IVA","") ->  | N30: =IF(N29<>0,N29*AliqIvaMed,"") ->  | Q30: =IF(N29<>0,"=","") -> 
B32: VERIFICA 2 - Asseverazione per Spesa Ammessa" | N32: =IF(N29<>0,N29+N30,"") -> 
A33: =CONCATENATE("ACPM Vers.",Versione," ©2022 SIM srl") -> ACPM Vers.2022.1.0 ©2022 SIM srl
B47: Spesa di Intervento | H47: Imponibile | K47: Iva | M47: Importo
B48: Spesa massima ammissibile asseverata . . . . . . . . . . . . . . . . . . . . . . . . . . . . | H48: =N27 -> 100 | K48: =H48*'Computo Metrico'!D46 -> 12 | N48: =H48+K48 -> 112
B49: =IF(nLicenza="Versione Demo",". . . . . . . . . . .","Prestazioni Professionali . . . . . . . . . . . . . . . . . . . . . . . . . . . . . . . . . . . . . . . . .") -> . . . . . . . . . . . | H49: ='Computo Metrico'!E49 -> 131.147541 | K49: ='Computo Metrico'!E50 -> 28.85245902 | N49: =H49+K49 -> 160
B50: Altri Costi / Opere complementari . . . . . . . . . . . . . . . . . . . . . . . . . . . . . . . . . | H50: ='Computo Metrico'!I47+'Computo Metrico'!I49 -> 0 | K50: =H50*'Computo Metrico'!D46 -> 0 | N50: =H50+K50 -> 0
H51: =SUM(H48:I50) -> 231.147541 | K51: =SUM(K48:L50) -> 40.85245902 | N51: =SUM(N48:P50) -> 272
L53: Spesa di Intervento - Decreto MITE | M53: SI = | N53: =N51 -> 272
L54: Spesa Massima ammissibile - Norma primaria | M54: SM = | N54: =IF(nLicenza="Versione Demo",0,SpesaAmmessaDL34) -> 0
M55: Spesa detraibile ammissibile = MIN(SI;SM) = | N55: =MIN(N51,N54) -> 0
M57: Importo Complessivo da Computo | N57: =ImportoComplessivo -> -10
M58: Quota da Computo Eccedente Spesa Detraibile Ammissibile (a Carico del Cliente) | N58: =IF(N57-N55>0,N57-N55,0) -> 0

Sheet Attestazione x Fornitura_Posa
B2: ATTESTAZIONE DI CONGRUITA' DELLE SPESE
B3: ex art. 121 comma 1-ter, lett. b) ed art. 119 comma 13 bis DL 34/2020 conv. L. 77/2020 e D.M. Costi Massimi 14/02/2022
B4: (articolo 3 del D.P.R. n. 300/1992 e degli articoli 46 e 47 del D.P.R. n. 445/2000)
B6: Il sottoscritto | E6: =CONCATENATE(AbbrevTitoloTec," ",CognomeTec," ",NomeTec) -> Ing. mario | I6: , nato a | J6: =PaeseNascTec -> 0 | O6: , il | P6: =DataNascTec -> 00:00:00 | R6: e residente a
B7: =PaeseResTec -> 0 | F7: , in qualità di tecnico asseveratore ex art. 121 comma 1-ter, lett. b) ed art. 119 comma 13 bis DL 34/2020
B8: conv. L. 77/2020 , in relazione agli interventi eseguiti a favore di | J8: =DatiGen!D17 -> Tizio Caio | O8: , sull’unità immobiliare sita a
B9: =DatiGen!D25 -> Palermo (PA) | G9: , in | H9: =DatiGen!D24 -> Via ZZZZZ | L9: e censita al N.C.E.U. del comune di | Q9: =B9 -> Palermo (PA)
B10: al foglio | D10: =DatiGen!D26 -> 12 | E10: p.lla | F10: =DatiGen!H26 -> 25 | G10: sub. | H10: =DatiGen!K26 -> 6 | I10: Categoria | K10: =DatiGen!M26 -> A/4 | L10: , relativamente ai lavori di :
B11: =IF(DatiGen!B5<>"",DatiGen!B5,"==========") -> Sostituzione infissi nell'appartamento a piano secondo del fabbricato sito a XXXXXXXXXXXXX in via XXXXX N.27
B12: =IF(DatiGen!B6<>"",DatiGen!B6,"==========") -> ==========
B13: =IF(DatiGen!B7<>"",DatiGen!B7,"==========") -> ==========
B14: eseguiti dalla ditta | F14: =DatiGen!D11 -> SIM srl
B15: di cui al titolo abilitativo, | F15: =DatiGen!D8 -> CILA Prot. N. XXXXX del XXXXXXX | M15: presentato al Comune di | P15: =Q9 -> Palermo (PA)
B16: per l'importo di euro | F16: =Controlli!H25 -> 100 | G16: , di cui alla Fattura N. | J16: =Controlli!D25 -> 163 | L16: del | M16: =Controlli!F25 -> 2022-06-01 | N16: ,
B17: consapevole delle implicazioni penali previste dall’articolo 76 del D.P.R. n. 445/2000 e delle conseguenze di cui all’articolo 21 della legge
B18: n. 241/1990 in caso di dichiarazioni mendaci o false attestazioni, ai sensi dell’articolo 3 del D.P.R. n. 300/1992 e degli articoli 46 e 47 del
B19: citato D.P.R. n. 445/2000, sotto la propria responsabilità,
B20: DICHIARA
B21: • | C21: di essere in possesso della qualifica professionale di | I21: =DatiGen!S5 -> Ingegnere | L21: e di essere iscritto all’Albo professionale :
C22: =CONCATENATE(DatiGen!S12," con il numero di matricola ",DatiGen!Z12,";") -> Ordine degli Ingegneri della provincia di XXXXXXXXXXX con il numero di matricola 1;
B23: • | C23: di essere dotato di idonea copertura assicurativa ai sensi del D.L. 34/2020 convertito nella L.77/2020, ed in particolare di aver stipulato
C24: la polizza professionale | F24: =DatiGen!S14 -> A121C526113-LB | I24: con scadenza al | L24: =DatiGen!Y14 -> 2022-09-26 | N24: , con la compagnia assicurativa
C25: =DatiGen!S15 -> Lloyd’s Insurance Company S.A. | L25: con massimale pari a euro | P25: =DatiGen!Y15 -> 1500000
C26: e che la medesima polizza è conforme ai requisiti previsti dal comma 14, del D.L. 34/2020 e s.m.i.;
B27: ATTESTA
B28: 1. i requisiti tecnici sulla base del progetto e dell'effettiva realizzazione;
B29: 2. la congruità delle spese sostenute ed effettivamente realizzate con riferimento all’intervento sopra specificato, precisando che la Spesa
B30: Detraibile Ammessa per la Fornitura e Posa è pari ad EURO | I30: =IF(Controlli!N29>0,Controlli!N27*(1+AliqIvaMed),Controlli!H25) -> 100 | L30: =IF(Controlli!N29>0,", rimanendo a Carico Cliente EURO",".") -> . | Q30: =IF(Controlli!N29>0,Controlli!N32,"") -> 
B31: Ai fini dell'asseverazione della congruità delle spese si è fatto riferimento ai valori massimi per tipologia di intervento determinati con i
B32: criteri previsti dal punto 13, dell’allegato A al Decreto MISE 6 agosto 2020 (c.d. Decreto Requisiti) , emanato in conformità all’art. 119
B33: comma 13, lettera a) DL 34/2020 e s.m.i.
B35: Castellana Sicula, 11/07/2022 | M35: In Fede
M37: =CONCATENATE("(",E6,")") -> (Ing. mario)
B38: Allegati: | S38: =CONCATENATE("ACPM Vers.",Versione," ©2022 SIM srl") -> ACPM Vers.2022.1.0 ©2022 SIM srl
B39: - Computo Metrico
B40: - Calcolo Spesa Detraibile Ammissibile
B48: Ai sensi dell’art. 38, D.P.R. 445 del 28 dicembre 2000, la dichiarazione è resa insieme alla fotocopia, non autenticata del documento di identità del dichiarante

Sheet Asseverazione x Spesa Ammessa
B2: ASSEVERAZIONE DI CONGRUITA' DELLE SPESE
B3: ex art. 121 comma 1-ter, lett. b) ed art. 119 comma 13 bis DL 34/2020 conv. L. 77/2020 e D.M. Costi Massimi 14/02/2022
B4: (articolo 3 del D.P.R. n. 300/1992 e degli articoli 46 e 47 del D.P.R. n. 445/2000)
B6: Il sottoscritto | E6: =CONCATENATE(AbbrevTitoloTec," ",CognomeTec," ",NomeTec) -> Ing. mario | I6: , nato a | J6: =PaeseNascTec -> 0 | O6: , il | P6: =DataNascTec -> 00:00:00 | R6: e residente a
B7: =PaeseResTec -> 0 | F7: , in qualità di tecnico asseveratore ex art. 121 comma 1-ter, lett. b) ed art. 119 comma 13 bis DL 34/2020
B8: conv. L. 77/2020 , in relazione agli interventi eseguiti a favore di | J8: =DatiGen!D17 -> Tizio Caio | O8: , sull’unità immobiliare sita a
B9: =DatiGen!D25 -> Palermo (PA) | G9: , in | H9: =DatiGen!D24 -> Via ZZZZZ | L9: e censita al N.C.E.U. del comune di | Q9: =B9 -> Palermo (PA)
B10: al foglio | D10: =DatiGen!D26 -> 12 | E10: p.lla | F10: =DatiGen!H26 -> 25 | G10: sub. | H10: =DatiGen!K26 -> 6 | I10: Categoria | K10: =DatiGen!M26 -> A/4 | L10: , relativamente ai lavori di :
B11: =IF(DatiGen!B5<>"",DatiGen!B5,"==========") -> Sostituzione infissi nell'appartamento a piano secondo del fabbricato sito a XXXXXXXXXXXXX in via XXXXX N.27
B12: =IF(DatiGen!B6<>"",DatiGen!B6,"==========") -> ==========
B13: =IF(DatiGen!B7<>"",DatiGen!B7,"==========") -> ==========
B14: eseguiti dalla ditta | F14: =DatiGen!D11 -> SIM srl
B15: di cui al titolo abilitativo, | F15: =DatiGen!D8 -> CILA Prot. N. XXXXX del XXXXXXX | M15: presentato al Comune di | P15: =Q9 -> Palermo (PA)
B16: per l'importo di euro | F16: =Controlli!N57 -> -10 | G16: , di cui al Computo Metrico allegato,
B17: consapevole delle implicazioni penali previste dall’articolo 76 del D.P.R. n. 445/2000 e delle conseguenze di cui all’articolo 21 della legge
B18: n. 241/1990 in caso di dichiarazioni mendaci o false attestazioni, ai sensi dell’articolo 3 del D.P.R. n. 300/1992 e degli articoli 46 e 47 del
B19: citato D.P.R. n. 445/2000, sotto la propria responsabilità,
B20: DICHIARA
B21: • | C21: di essere in possesso della qualifica professionale di | I21: =DatiGen!S5 -> Ingegnere | L21: e di essere iscritto all’Albo professionale :
C22: =CONCATENATE(DatiGen!S12," con il numero di matricola ",DatiGen!Z12,";") -> Ordine degli Ingegneri della provincia di XXXXXXXXXXX con il numero di matricola 1;
B23: • | C23: di essere dotato di idonea copertura assicurativa ai sensi del D.L. 34/2020 convertito nella L.77/2020, ed in particolare di aver stipulato
C24: la polizza professionale n. A121C526113-LB con scadenza al 26/09/2022 con la compagnia assicurativa Lloyd’s Insurance Company S.A., con massimale pari a euro 500.000,00 , e che la medesima polizza è conforme ai requisiti previsti dal comma 14, del D.L. 34/2020 e s.m.i. | F24: =DatiGen!S14 -> A121C526113-LB | I24: con scadenza al | L24: =DatiGen!Y14 -> 2022-09-26 | N24: , con la compagnia assicurativa
C25: =DatiGen!S15 -> Lloyd’s Insurance Company S.A. | L25: con massimale pari a euro | P25: =DatiGen!Y15 -> 1500000
C26: e che la medesima polizza è conforme ai requisiti previsti dal comma 14, del D.L. 34/2020 e s.m.i.;
B27: ATTESTA
B28: i requisiti tecnici sulla base del progetto e dell'effettiva realizzazione;
B29: ASSEVERA
B30: la congruità delle spese sostenute ed effettivamente realizzate con riferimento all’intervento sopra specificato, precisando che la Spesa
B31: Detraibile Ammissibile è pari ad EURO | G31: =IF(Controlli!N58>0,Controlli!N55,Controlli!N57) -> -10 | J31: =IF(Controlli!N58>0,",",".") -> . | K31: =IF(Controlli!N58>0,"rimanendo a Carico Cliente EURO","") ->  | O31: =IF(Controlli!N58>0,Controlli!N58,"") ->  | S31: =IF(Controlli!N58>0,".","") -> 
B32: Ai fini dell'asseverazione della congruità delle spese si è fatto riferimento ai valori massimi per tipologia di intervento determinati con i
B33: criteri previsti dal punto 13, dell’allegato A al Decreto MISE 6 agosto 2020 (c.d. Decreto Requisiti) , emanato in conformità all’art. 119
B34: comma 13, lettera a) DL 34/2020 e s.m.i.
B36: Paese, Data | M36: In Fede
M38: =CONCATENATE("(",E6,")") -> (Ing. mario)
B39: Allegati: | S39: =CONCATENATE("ACPM Vers.",Versione," ©2022 SIM srl") -> ACPM Vers.2022.1.0 ©2022 SIM srl
B40: - Computo Metrico
B41: - Calcolo Spesa Detraibile Ammissibile
B48: Ai sensi dell’art. 38, D.P.R. 445 del 28 dicembre 2000, la dichiarazione è resa insieme alla fotocopia, non autenticata del documento di identità del dichiarante

Sheet Listino Base
B2: Tariffa | C2: Descrizione Estesa | D2: Descrizione Sintetica | E2: U.M. | F2: Prezzo Un.
B3: DEI A25114 | C3: Smontaggio di infissi esterni in legno come finestre, sportelli a vetri, persiane ecc., calcolato sulla superficie, inclusa l'eventuale parte vetrata, compreso telaio, controtelaio, smuratura delle grappe o dei tasselli di tenuta ed eventuale taglio a sezione degli elementi | D3: Rimozione infissi esistenti, sportelli, persiane, ecc., calcolato sulla superficie, inclusa parte vetrata, telaio, controtelaio, smuratura | E3: mq | F3: 19.86
B4: 21.01.25 | C4: Trasporto alle pubbliche discariche del comune in cui si eseguono i lavori o nella discarica del comprensorio di cui fa parte il comune medesimo o su aree autorizzate al conferimento, di sfabbricidi classificabili non inquinanti provenienti da lavori eseguiti all’interno del perimetro del centro edificato, per mezzo di autocarri a cassone scarrabile, compreso il nolo del cassone, esclusi gli oneri di conferimento a discarica. | D4: Trasporto alle pubbliche discariche del comune in cui si eseguono i lavori …., esclusi gli oneri di conferimento a discarica. | E4: mc | F4: 32.26
B5: DEI - A25136.a | C5: Compenso alle discariche autorizzate e realizzate secondo il DLgs 13 gennaio 2003, n. 36, per conferimento di materiale di risulta proveniente da scavi o demolizioni, escluso il costo relativo alla caratterizzazione del rifiuto: - rifiuti ammissibili in discarica per rifiuti inerti (art. 5 DM 27 settembre 2010) | D5: Oneri conferimento a discarica | E5: ton | F5: 18
B6: DEI C25076e | C6: Serramento realizzato con profili estrusi di pvc prodotti secondo la norma DIN 7748, esenti da cadmio, autoestinguenti, classe 1 di reazione al fuoco; sistema caratterizzato da profili formati da 5 camere interne, dimensione minima in profondità 70 mm, trasmittanza termica del nodo Uf = 1,30 W/m2K, rinforzati con profili in acciaio zincato spessore 15/10, 2 guarnizioni in TPE coestruse e saldate negli angoli; montato su controtelaio, fornito e posto in opera, compresi maniglie, cerniere, meccanismi di manovra, dispositivi di sicurezza contro le false manovre e quant'altro necessario per il funzionamento, riscontro inferiore antiscasso, con carrello di sollevamento per agevolare la chiusura a battente, cerniere inferiori e superiori portata 130 kg simmetriche e quant'altro necessario per il funzionamento, anta dormiente (no ribalta) con cerniere centrali a scomparsa per tenuta anta-telaio, con vetrocamera doppio vetro con canalina, con prestazioni termiche e acustiche idonee, permeabilità all'aria classe 4 secondo la norma UNI EN 12207, tenuta all'acqua classe 7A secondo la norma UNI 12208, resistenza al vento classe B2 secondo la norma UNI 12210, idoneo per zona climatica C con trasmittanza termica Uw ≤ 1,75 W/m2K, idoneo per zona climatica D con trasmittanza termica Uw ≤ 1,67 W/m2K, prestazione acustica Rw = 36 dB, copriprofili interni sui 3 lati delle dimensioni di 60 × 7 mm, incluso il trasporto, esclusi il controtelaio, il tiro ai piani ed eventuali assistenze murarie: Portafinestra 2 ante, a battente, telaio su 4 lati, con traverso orizzontale | D6: Portafinestra PVC 2 ante, a battente N.4 x 1,18 x 2,29 | E6: mq | F6: 527.39
B7: AP.01 | C7: Zanzariera laterale a molla N.4 x 1,18 x 2,29 | D7: Zanzariera laterale a molla N.4 x 1,18 x 2,29 | E7: mq | F7: 40
B8: C25076a | C8: Serramento realizzato con profili estrusi di pvc prodotti secondo la norma DIN 7748, esenti da cadmio, autoestinguenti, classe 1 di reazione al fuoco; sistema caratterizzato da profili formati da 5 camere interne, dimensione minima in profondità 70 mm, trasmittanza termica del nodo Uf = 1,30 W/m2K, rinforzati con profili in acciaio zincato spessore 15/10, 2 guarnizioni in TPE coestruse e saldate negli angoli; montato su controtelaio, fornito e posto in opera, compresi maniglie, cerniere, meccanismi di manovra, dispositivi di sicurezza contro le false manovre e quant'altro necessario per il funzionamento, riscontro inferiore antiscasso, con carrello di sollevamento per agevolare la chiusura a battente, cerniere inferiori e superiori portata 130 kg simmetriche e quant'altro necessario per il funzionamento, anta dormiente (no ribalta) con cerniere centrali a scomparsa per tenuta anta-telaio, con vetrocamera doppio vetro con canalina, con prestazioni termiche e acustiche idonee, permeabilità all'aria classe 4 secondo la norma UNI EN 12207, tenuta all'acqua classe 7A secondo la norma UNI 12208, resistenza al vento classe B2 secondo la norma UNI 12210, idoneo per zona climatica C con trasmittanza termica Uw ≤ 1,75 W/m2K, idoneo per zona climatica D con trasmittanza termica Uw ≤ 1,67 W/m2K, prestazione acustica Rw = 36 dB, copriprofili interni sui 3 lati delle dimensioni di 60 × 7 mm, incluso il trasporto, esclusi il controtelaio, il tiro ai piani ed eventuali assistenze murarie: Finestra, a telaio fisso | D8: Finestra PVC a 1 anta, a telaio fisso | E8: mq | F8: 318.58
B9: C25076b | C9: Serramento realizzato con profili estrusi di pvc prodotti secondo la norma DIN 7748, esenti da cadmio, autoestinguenti, classe 1 di reazione al fuoco; sistema caratterizzato da profili formati da 5 camere interne, dimensione minima in profondità 70 mm, trasmittanza termica del nodo Uf = 1,30 W/m2K, rinforzati con profili in acciaio zincato spessore 15/10, 2 guarnizioni in TPE coestruse e saldate negli angoli; montato su controtelaio, fornito e posto in opera, compresi maniglie, cerniere, meccanismi di manovra, dispositivi di sicurezza contro le false manovre e quant'altro necessario per il funzionamento, riscontro inferiore antiscasso, con carrello di sollevamento per agevolare la chiusura a battente, cerniere inferiori e superiori portata 130 kg simmetriche e quant'altro necessario per il funzionamento, anta dormiente (no ribalta) con cerniere centrali a scomparsa per tenuta anta-telaio, con vetrocamera doppio vetro con canalina, con prestazioni termiche e acustiche idonee, permeabilità all'aria classe 4 secondo la norma UNI EN 12207, tenuta all'acqua classe 7A secondo la norma UNI 12208, resistenza al vento classe B2 secondo la norma UNI 12210, idoneo per zona climatica C con trasmittanza termica Uw ≤ 1,75 W/m2K, idoneo per zona climatica D con trasmittanza termica Uw ≤ 1,67 W/m2K, prestazione acustica Rw = 36 dB, copriprofili interni sui 3 lati delle dimensioni di 60 × 7 mm, incluso il trasporto, esclusi il controtelaio, il tiro ai piani ed eventuali assistenze murarie: Finestra a 1 anta, a battente | D9: Finestra PVC a 1 anta, a battente N.2 x 0,66 x 1,29 | E9: mq | F9: 445.52
B10: DEI C25126 | C10: Sovrapprezzo per ciascuna anta a ribalta | D10: Sovrapprezzo per ciascuna anta ribalta N.4+2 | E10: cad | F10: 70
B11: DEI C13115b | C11: Controtelaio in acciaio zincato a caldo, completo di controventi e idonee grappe per l'ancoraggio alla muratura, valutato al m2 di luce vano (minimo fatturabile 1,2 m2): Profondità 101 ÷ 150 mm | D11: Controtelai in acciaio zincato a caldo L=10/15 cm | E11: mq | F11: 36.96
B12: DEI A25135b | C12: Tiro in alto o calo in basso di materiali a mezzo di elevatore meccanico compreso l'onere di carico e scarico dei materiali: Valutazione a volume | D12: Tiro in alto o Tiro in basso mc. 2 x (10,81+1,70)x0,10 | E12: mc | F12: 34.82
B13: DEI C43024 | C13: Vetrata isolante ad elevate prestazioni energetiche, con cristallo bassoemissivo con emissività ε pari a 0,01 (trasmittanza termica Ug fino a 1,0 W/m2 K), composta da due lastre di stratificato di sicurezza di cui una chiara 33.1 ed una bassoemissiva 33.1, intercapedine in aria disidratata 12-15 mm | D13: Vetrocamera 6/7 + 16 + 6/7 antinfortunistico selettivo con Argon | E13: mq | F13: 145.5
B14: DEI N04137a | C14: Sollevatori telescopici con cestelli posacentine da: 3.000kg: A Caldo | D14: Sollevatore telescopico con cestello | E14: ora | F14: 56.32

Sheet Decreto MITE

Sheet Allegato A
I52: Costo Max | J52: Rif. | K52: U.M. | L52: DL.34/2020 | M52: Indicazioni
A53: Isolamento Coperture - Esterno | I53: 276 | J53: Superficie | K53: mq. | L53: 50000 | M53: Fornitura dell’isolante termico, del sistema di ancoraggio, tutti i materiali che concorrono alla realizzazione dell’intonaco esterno di copertura dell’isolante, le tegole, etc.
A54: Isolamento Coperture - Interno | I54: 120 | J54: Superficie | K54: mq. | L54: 50000 | M54: Fornitura dell’isolante termico, del sistema di ancoraggio, tutti i materiali che concorrono alla realizzazione dell’intonaco esterno di copertura dell’isolante, le tegole, etc.
A55: Isolamento Coperture - Copertura ventilata | I55: 300 | J55: Superficie | K55: mq. | L55: 50000 | M55: Fornitura dell’isolante termico, del sistema di ancoraggio, tutti i materiali che concorrono alla realizzazione dell’intonaco esterno di copertura dell’isolante, le tegole, etc.
A56: Isolamento pavimenti - Esterno | I56: 144 | J56: Superficie | K56: mq. | L56: 50000 | M56: Fornitura dell’isolante termico, del sistema di ancoraggio, tutti i materiali che concorrono alla realizzazione dell’intonaco esterno di copertura dell’isolante, la pavimentazione (non di pregio), etc.
A57: Isolamento pavimenti - Interno/Terreno | I57: 180 | J57: Superficie | K57: mq. | L57: 50000 | M57: Fornitura dell’isolante termico, del sistema di ancoraggio, tutti i materiali che concorrono alla realizzazione dell’intonaco esterno di copertura dell’isolante, la pavimentazione (non di pregio), etc.
A58: Isolamento pareti perimetrali - Zone A, B e C - Esterno/Diffusa | I58: 180 | J58: Superficie | K58: mq. | L58: 50000 | M58: Fornitura dell’isolante termico, del sistema di ancoraggio, tutti i materiali che concorrono alla realizzazione dell’intonaco esterno di copertura dell’isolante, etc.
A59: Isolamento pareti perimetrali - Zone A, B e C - Interno | I59: 96 | J59: Superficie | K59: mq. | L59: 50000 | M59: Fornitura dell’isolante termico, del sistema di ancoraggio, tutti i materiali che concorrono alla realizzazione dell’intonaco esterno di copertura dell’isolante, etc.
A60: Isolamento pareti perimetrali - Zone A, B e C - Parete Ventilata | I60: 240 | J60: Superficie | K60: mq. | L60: 50000 | M60: Fornitura dell’isolante termico, del sistema di ancoraggio, tutti i materiali che concorrono alla realizzazione dell’intonaco esterno di copertura dell’isolante, etc.
A61: Isolamento pareti perimetrali - Zone D, E ed F - Esterno/Diffusa | I61: 195 | J61: Superficie | K61: mq. | L61: 50000 | M61: Fornitura dell’isolante termico, del sistema di ancoraggio, tutti i materiali che concorrono alla realizzazione dell’intonaco esterno di copertura dell’isolante, etc.
A62: Isolamento pareti perimetrali - Zone D, E ed F - Interno | I62: 104 | J62: Superficie | K62: mq. | L62: 50000 | M62: Fornitura dell’isolante termico, del sistema di ancoraggio, tutti i materiali che concorrono alla realizzazione dell’intonaco esterno di copertura dell’isolante, etc.
A63: Isolamento pareti perimetrali - Zone D, E ed F - Parete Ventilata | I63: 260 | J63: Superficie | K63: mq. | L63: 50000 | M63: Fornitura dell’isolante termico, del sistema di ancoraggio, tutti i materiali che concorrono alla realizzazione dell’intonaco esterno di copertura dell’isolante, etc.
A64: Sostituzione chiusure trasparenti / Infissi - Zone A, B e C - Serramento | I64: 660 | J64: Superficie | K64: mq. | L64: 54545 | M64: Fornitura di infisso, telaio, controtelaio, celetto, cassonetto, tapparella, rullo avvolgibile, avvolgitore, persiane e, ove previsto, componentistica dell’impianto elettrico, etc.
A65: Sostituzione chiusure trasparenti / Infissi - Zone A, B e C - Serramento + chiusura oscurante | I65: 780 | J65: Superficie | K65: mq. | L65: 54545 | M65: Fornitura di infisso, telaio, controtelaio, celetto, cassonetto, tapparella, rullo avvolgibile, avvolgitore, persiane e, ove previsto, componentistica dell’impianto elettrico, etc.
A66: Sostituzione chiusure trasparenti / Infissi - Zone D, E ed F - Serramento | I66: 780 | J66: Superficie | K66: mq. | L66: 54545 | M66: Fornitura di infisso, telaio, controtelaio, celetto, cassonetto, tapparella, rullo avvolgibile, avvolgitore, persiane e, ove previsto, componentistica dell’impianto elettrico, etc.
A67: Sostituzione chiusure trasparenti / Infissi - Zone D, E ed F - Serramento + chiusura oscurante | I67: 900 | J67: Superficie | K67: mq. | L67: 54545 | M67: Fornitura di infisso, telaio, controtelaio, celetto, cassonetto, tapparella, rullo avvolgibile, avvolgitore, persiane e, ove previsto, componentistica dell’impianto elettrico, etc.
A68: Installazione di schermature solari e/o ombreggiamenti mobili | I68: 276 | J68: Superficie | K68: mq. | M68: Fornitura della schermatura solare e/o ombreggiante, il sistema di montaggio e, ove previsto, la componentistica dell’impianto elettrico, etc.
A69: Impianti a Collettori Solari - Scoperti | I69: 900 | J69: Superficie | K69: mq. | M69: Fornitura del pannello solare, sistema di montaggio, serbatoio di accumulo, componentistica dell’impianto idraulico e, ove previsto, dell’impianto elettrico, i sistemi di pompaggio, etc.
A70: Impianti a Collettori Solari - Piani vetrati | I70: 1200 | J70: Superficie | K70: mq. | M70: Fornitura del pannello solare, sistema di montaggio, serbatoio di accumulo, componentistica dell’impianto idraulico e, ove previsto, dell’impianto elettrico, i sistemi di pompaggio, etc.
A71: Impianti a Collettori Solari - Sottovuoto a concentrazione | I71: 1500 | J71: Superficie | K71: mq. | M71: Fornitura del pannello solare, sistema di montaggio, serbatoio di accumulo, componentistica dell’impianto idraulico e, ove previsto, dell’impianto elettrico, i sistemi di pompaggio, etc.
A72: Impianti di riscaldamento con caldaie ad acqua a condensazione e/o generatori di aria calda a condensazione | I72: 240 | J72: Potenza nominale | K72: kWt

Sheet FAQ Enea e MITE
